[Event "African Games Rapid Open 2019"]
[Site "Casablanca"]
[Date "2019.08.26"]
[Round "5.23"]
[White "Kourakoumba, Florent"]
[Black "Yahi, Mohamed Salem"]
[Result "0-1"]
[ECO "B00"]
[WhiteElo "1677"]
[BlackElo "1928"]
[Annotator "NA"]
[PlyCount "106"]
[EventDate "2019.08.26"]
[EventType "team-tourn"]
[EventCountry "MAR"]
[SourceTitle "playchess.com"]
[Source "ChessBase"]
[SourceQuality "1"]
[TimeControl "900+10"]

1. e4 {[%emt 0:00:00]} d6 {[%emt 0:00:00]} 2. Bc4 {[%emt 0:00:00]} Nf6 {[%emt 0:00:00]} 3. d3 {[%emt 0:00:04]} g6 {[%emt 0:00:02]} 4. Ne2 {[%emt 0:00:03]} Bg7 {[%emt 0:00:04]} 5. O-O {[%emt 0:00:03]} O-O {[%emt 0:00:07]} 6. c3 {[%emt 0:00:02]} Nc6 {[%emt 0:00:15]} 7. h3 {[%emt 0:00:10]} e5 {[%emt 0:00:07]} 8. Bb3 {[%emt 0:00:16]} b6 {[%emt 0:00:21]} 9. Ng3 {[%emt 0:00:04]} Bb7 {[%emt 0:00:06]} 10. f4 {[%emt 0:00:07]} exf4 {[%emt 0:00:09]} 11. Bxf4 {[%emt 0:00:04]} Na5 {[%emt 0:00:54]} 12. Bc2 {[%emt 0:00:03]} Re8 {[%emt 0:01:00]} 13. Na3 {[%emt 0:00:11]} b5 {[%emt 0:00:13]} 14. Nxb5 {[%emt 0:00:16]} Ba6 {[%emt 0:00:05]} 15. Nd4 {[%emt 0:00:13]} c5 {[%emt 0:00:13]} 16. Nb3 {[%emt 0:00:12]} Nxb3 {[%emt 0:00:04]} 17. axb3 {[%emt 0:00:02]} Bb7 {[%emt 0:00:14]} 18. Qf3 {[%emt 0:00:31]} Qc7 {[%emt 0:00:51]} 19. Bg5 {[%emt 0:00:21]} Re6 {[%emt 0:00:52]} 20. Rae1 {[%emt 0:00:27]} h6 {[%emt 0:00:42]} 21. Bd2 {[%emt 0:00:50]} Nh7 {[%emt 0:00:29]} 22. Ne2 {[%emt 0:00:17]} Rf6 {[%emt 0:02:01]} 23. Qg3 {[%emt 0:00:06]} Rxf1+ {[%emt 0:00:21]} 24. Rxf1 {[%emt 0:00:02]} Nf6 {[%emt 0:01:17]} 25. Qf3 {[%emt 0:00:23]} Nh5 {[%emt 0:00:28]} 26. g4 {[%emt 0:00:06]} Nf6 {[%emt 0:00:13]} 27. Bf4 {[%emt 0:00:27]} Nd7 {[%emt 0:00:17]} 28. Bg3 {[%emt 0:00:29]} Ne5 {[%emt 0:00:03]} 29. Bxe5 {[%emt 0:00:14]} Bxe5 {[%emt 0:00:02]} 30. Rc1 {[%emt 0:00:11]} Qe7 {[%emt 0:00:08]} 31. d4 {[%emt 0:00:10]} cxd4 {[%emt 0:00:16]} 32. cxd4 {[%emt 0:00:01]} Bg7 {[%emt 0:00:02]} 33. b4 {[%emt 0:00:52]} Re8 {[%emt 0:00:02]} 34. d5 {[%emt 0:00:25]} Bxb2 {[%emt 0:00:08]} 35. Rb1 {[%emt 0:00:09]} Be5 {[%emt 0:00:03]} 36. Rf1 {[%emt 0:00:18]} Ba6 {[%emt 0:00:05]} 37. Re1 {[%emt 0:00:24]} Bxe2 {[%emt 0:00:14]} 38. Rxe2 {[%emt 0:00:03]} Rc8 {[%emt 0:00:02]} 39. Kg2 {[%emt 0:00:26]} Rc3 {[%emt 0:00:10]} 40. Bd3 {[%emt 0:00:15]} Qc7 {[%emt 0:00:10]} 41. b5 {[%emt 0:00:46]} f6 {[%emt 0:00:12]} 42. h4 {[%emt 0:00:32]} Kg7 {[%emt 0:00:03]} 43. Rd2 {[%emt 0:00:56]} g5 {[%emt 0:00:26]} 44. hxg5 {[%emt 0:00:07]} hxg5 {[%emt 0:00:02]} 45. Rd1 {[%emt 0:00:09]} Rc1 {[%emt 0:00:38]} 46. Rd2 {[%emt 0:00:33]} Qc3 {[%emt 0:00:14]} 47. Ra2 {[%emt 0:00:17]} Qc5 {[%emt 0:00:42]} 48. Rf2 {[%emt 0:00:43]} Rc3 {[%emt 0:01:14]} 49. Qf5 {[%emt 0:00:23]} Rxd3 {[%emt 0:00:15]} 50. Qd7+ {[%emt 0:00:03]} Kh6 {[%emt 0:00:03]} 51. Qe8 {[%emt 0:02:52]} Rg3+ {[%emt 0:00:04]} 52. Kf1 {[%emt 0:00:13]} Qc1+ {[%emt 0:00:07]} 53. Ke2 {[%emt 0:00:17]} Re3# {[%emt 0:00:03]} 0-1

[Event "African Games Rapid Open 2019"]
[Site "Casablanca"]
[Date "2019.08.27"]
[Round "6.9"]
[White "Mesfin, Leykun"]
[Black "Osunfuyi, Abimbola"]
[Result "0-1"]
[ECO "B44"]
[WhiteElo "2151"]
[BlackElo "2235"]
[Annotator "NA"]
[PlyCount "108"]
[EventDate "2019.08.26"]
[EventType "team-tourn"]
[EventCountry "MAR"]
[SourceTitle "playchess.com"]
[Source "ChessBase"]
[SourceQuality "1"]
[TimeControl "900+10"]

1. e4 {[%emt 0:00:05]} c5 {[%emt 0:00:00]} 2. Nf3 {[%emt 0:00:01]} e6 {[%emt 0:00:07]} 3. d4 {[%emt 0:00:03]} cxd4 {[%emt 0:00:02]} 4. Nxd4 {[%emt 0:00:01]} Nc6 {[%emt 0:00:04]} 5. Nxc6 {[%emt 0:00:02]} bxc6 {[%emt 0:00:02]} 6. Bd3 {[%emt 0:00:01]} d5 {[%emt 0:00:15]} 7. O-O {[%emt 0:00:38]} Nf6 {[%emt 0:00:02]} 8. e5 {[%emt 0:00:45]} Nd7 {[%emt 0:00:03]} 9. Re1 {[%emt 0:00:13]} g6 {[%emt 0:00:20]} 10. c4 {[%emt 0:00:19]} Bg7 {[%emt 0:00:04]} 11. cxd5 {[%emt 0:00:03]} cxd5 {[%emt 0:00:03]} 12. Bf4 {[%emt 0:00:30]} O-O {[%emt 0:00:05]} 13. Nd2 {[%emt 0:00:23]} Rb8 {[%emt 0:00:31]} 14. b3 {[%emt 0:00:34]} Qa5 {[%emt 0:00:38]} 15. Nf3 {[%emt 0:00:47]} Ba6 {[%emt 0:00:13]} 16. Bxa6 {[%emt 0:00:26]} Qxa6 {[%emt 0:00:01]} 17. Qd2 {[%emt 0:00:04]} Nc5 {[%emt 0:00:08]} 18. Bh6 {[%emt 0:00:49]} Ne4 {[%emt 0:00:11]} 19. Qf4 {[%emt 0:00:17]} Qb6 {[%emt 0:00:48]} 20. Rf1 {[%emt 0:00:59]} Bxh6 {[%emt 0:01:46]} 21. Qxh6 {[%emt 0:00:06]} f6 {[%emt 0:00:03]} 22. exf6 {[%emt 0:02:35]} Rxf6 {[%emt 0:00:04]} 23. Qe3 {[%emt 0:01:36]} Qa5 {[%emt 0:03:59]} 24. Ne5 {[%emt 0:00:45]} Rc8 {[%emt 0:01:08]} 25. Ng4 {[%emt 0:00:54]} Rff8 {[%emt 0:00:24]} 26. f3 {[%emt 0:00:18]} Nc5 {[%emt 0:01:15]} 27. Qd4 {[%emt 0:00:19]} h5 {[%emt 0:00:28]} 28. Nf6+ {[%emt 0:00:35]} Kf7 {[%emt 0:00:05]} 29. b4 {[%emt 0:00:54]} Qa4 {[%emt 0:00:28]} 30. Nxd5 {[%emt 0:00:41]} exd5 {[%emt 0:00:13]} 31. Qxd5+ {[%emt 0:00:06]} Ne6 {[%emt 0:00:15]} 32. Rfe1 {[%emt 0:00:11]} Qc6 {[%emt 0:00:12]} 33. Qb3 {[%emt 0:00:20]} Qc4 {[%emt 0:00:34]} 34. Qa4 {[%emt 0:00:11]} Qd4+ {[%emt 0:00:52]} 35. Kh1 {[%emt 0:00:01]} Rc7 {[%emt 0:00:04]} 36. Rad1 {[%emt 0:00:05]} Qc3 {[%emt 0:00:40]} 37. h3 {[%emt 0:00:54]} Rd8 {[%emt 0:00:42]} 38. Rb1 {[%emt 0:00:59]} Rd2 {[%emt 0:00:42]} 39. Qa6 {[%emt 0:01:04]} Qc4 {[%emt 0:00:20]} 40. Qa5 {[%emt 0:00:53]} Qd5 {[%emt 0:01:09]} 41. Qa4 {[%emt 0:00:22]} Rxa2 {[%emt 0:00:06]} 42. Rbd1 {[%emt 0:00:33]} Rxa4 43. Rxd5 Rxb4 {[%emt 0:00:23]} 44. Rd6 {[%emt 0:00:12]} Re7 {[%emt 0:00:05]} 45. g4 {[%emt 0:00:09]} h4 {[%emt 0:00:02]} 46. Ra6 {[%emt 0:00:11]} Rb6 {[%emt 0:00:13]} 47. Ra4 {[%emt 0:00:03]} a6 {[%emt 0:00:19]} 48. f4 {[%emt 0:00:03]} Nc5 {[%emt 0:00:03]} 49. Rxe7+ {[%emt 0:00:10]} Kxe7 {[%emt 0:00:01]} 50. Ra3 {[%emt 0:00:06]} Rb3 {[%emt 0:00:22]} 51. Ra5 {[%emt 0:00:23]} Rxh3+ {[%emt 0:00:08]} 52. Kg2 {[%emt 0:00:01]} Rg3+ 53. Kf2 Kd6 {[%emt 0:00:18]} 54. f5 {[%emt 0:00:12]} gxf5 {[%emt 0:00:06]} 0-1

[Event "African Games Rapid Open 2019"]
[Site "Casablanca"]
[Date "2019.08.27"]
[Round "6.10"]
[White "Silva, David"]
[Black "Ebosse, Kingue Victor Patric"]
[Result "0-1"]
[ECO "B90"]
[WhiteElo "2239"]
[BlackElo "2055"]
[Annotator "NA"]
[PlyCount "105"]
[EventDate "2019.08.26"]
[EventType "team-tourn"]
[EventCountry "MAR"]
[SourceTitle "playchess.com"]
[Source "ChessBase"]
[SourceQuality "1"]
[TimeControl "900+10"]

1. e4 {[%emt 0:00:00]} c5 {[%emt 0:00:00]} 2. Nf3 {[%emt 0:00:00]} d6 {[%emt 0:00:00]} 3. d4 {[%emt 0:00:00]} cxd4 {[%emt 0:00:00]} 4. Nxd4 {[%emt 0:00:00]} Nf6 {[%emt 0:00:01]} 5. Nc3 {[%emt 0:00:02]} a6 {[%emt 0:00:01]} 6. a3 {[%emt 0:01:02]} e5 {[%emt 0:00:13]} 7. Nf5 {[%emt 0:00:03]} d5 {[%emt 0:01:43]} 8. Bg5 {[%emt 0:00:05]} Bxf5 {[%emt 0:00:04]} 9. exf5 {[%emt 0:00:15]} d4 {[%emt 0:00:06]} 10. Bxf6 {[%emt 0:00:03]} gxf6 {[%emt 0:01:01]} 11. Ne4 {[%emt 0:00:03]} Nd7 {[%emt 0:02:03]} 12. Bc4 {[%emt 0:00:31]} Rc8 {[%emt 0:01:03]} 13. Ba2 {[%emt 0:00:04]} h5 {[%emt 0:00:04]} 14. O-O {[%emt 0:00:39]} Qc7 {[%emt 0:00:53]} 15. b4 {[%emt 0:00:22]} Qc6 {[%emt 0:01:55]} 16. Qf3 {[%emt 0:00:16]} h4 {[%emt 0:01:16]} 17. c3 {[%emt 0:00:21]} Bh6 {[%emt 0:00:48]} 18. cxd4 {[%emt 0:00:02]} exd4 {[%emt 0:00:01]} 19. Rfe1 {[%emt 0:00:48]} Kf8 {[%emt 0:00:29]} 20. Qh5 {[%emt 0:04:58]} Ne5 {[%emt 0:00:23]} 21. f4 {[%emt 0:02:43]} Bg7 {[%emt 0:00:44]} 22. Qd1 {[%emt 0:00:11]} Nc4 {[%emt 0:00:41]} 23. Bxc4 {[%emt 0:00:19]} Qxc4 {[%emt 0:00:31]} 24. Nd6 {[%emt 0:00:05]} Qc6 {[%emt 0:00:29]} 25. Rc1 {[%emt 0:00:19]} Qxc1 {[%emt 0:00:40]} 26. Re8+ {[%emt 0:00:02]} Rxe8 {[%emt 0:00:02]} 27. Qxc1 {[%emt 0:00:02]} Ra8 {[%emt 0:01:08]} 28. Qc7 {[%emt 0:00:22]} Kg8 {[%emt 0:00:02]} 29. Qxf7+ {[%emt 0:00:11]} Kh7 {[%emt 0:00:01]} 30. Qg6+ {[%emt 0:00:01]} Kg8 {[%emt 0:00:03]} 31. Ne8 {[%emt 0:00:03]} Rxe8 {[%emt 0:00:34]} 32. Qxe8+ {[%emt 0:00:02]} Kh7 {[%emt 0:00:02]} 33. Qh5+ {[%emt 0:00:04]} Kg8 {[%emt 0:00:02]} 34. Qd1 {[%emt 0:00:04]} h3 {[%emt 0:01:07]} 35. g4 {[%emt 0:00:07]} Rh4 {[%emt 0:00:09]} 36. Kf2 {[%emt 0:00:02]} Bf8 {[%emt 0:01:30]} 37. Kg3 {[%emt 0:00:10]} Rh8 {[%emt 0:00:27]} 38. Qxd4 {[%emt 0:00:05]} Bg7 {[%emt 0:00:24]} 39. g5 {[%emt 0:00:04]} fxg5 {[%emt 0:00:18]} 40. Qd5+ {[%emt 0:00:02]} Kh7 {[%emt 0:00:09]} 41. fxg5 {[%emt 0:00:02]} Rg8 {[%emt 0:00:07]} 42. Qf7 {[%emt 0:00:04]} Rf8 {[%emt 0:00:05]} 43. Qh5+ {[%emt 0:00:04]} Kg8 {[%emt 0:00:03]} 44. f6 {[%emt 0:00:06]} Bxf6 {[%emt 0:00:10]} 45. gxf6 {[%emt 0:00:02]} Rxf6 {[%emt 0:00:01]} 46. Qxh3 {[%emt 0:00:09]} Rc6 {[%emt 0:00:29]} 47. Qg4+ {[%emt 0:00:06]} Kf8 {[%emt 0:00:05]} 48. Qf3+ {[%emt 0:00:02]} Kg7 {[%emt 0:00:12]} 49. Qxc6 {[%emt 0:00:03]} bxc6 {[%emt 0:00:01]} 50. Kf4 {[%emt 0:00:02]} Kf6 {[%emt 0:00:11]} 51. Ke4 {[%emt 0:00:01]} Ke6 {[%emt 0:00:04]} 52. Kd4 {[%emt 0:00:02]} Kd6 {[%emt 0:00:01]} 53. h4 {[%emt 0:00:02]} 0-1

[Event "African Games Rapid Open 2019"]
[Site "Casablanca"]
[Date "2019.08.27"]
[Round "6.14"]
[White "Mushore, Emarald Takudzwa"]
[Black "Marie, Patrick"]
[Result "1-0"]
[ECO "B35"]
[WhiteElo "2198"]
[BlackElo "1921"]
[Annotator "ChessBase"]
[PlyCount "42"]
[EventDate "2019.08.26"]
[EventType "team-tourn"]
[EventCountry "MAR"]
[SourceTitle "playchess.com"]
[Source "ChessBase"]
[SourceQuality "1"]
[TimeControl "900+10"]

1. e4 {[%emt 0:00:00]} c5 {[%emt 0:00:00]} 2. Nf3 {[%emt 0:00:00]} Nc6 {[%emt 0:00:00]} 3. Nc3 {[%emt 0:00:02]} g6 {[%emt 0:00:01]} 4. d4 {[%emt 0:00:03]} cxd4 {[%emt 0:00:01]} 5. Nxd4 {[%emt 0:00:01]} Bg7 {[%emt 0:00:01]} 6. Be3 {[%emt 0:00:02]} Nf6 {[%emt 0:00:02]} 7. Bc4 {[%emt 0:00:04]} O-O {[%emt 0:00:08]} 8. Bb3 {[%emt 0:00:04]} d6 {[%emt 0:00:12]} 9. O-O {[%emt 0:00:07]} Bd7 {[%emt 0:00:21]} 10. h3 {[%emt 0:00:13]} Rc8 {[%emt 0:00:26]} 11. Qd2 {[%emt 0:00:35]} a6 {[%emt 0:01:06]} 12. Rad1 {[%emt 0:00:32]} Qa5 {[%emt 0:01:23]} 13. f4 {[%emt 0:01:24]} Nxd4 {[%emt 0:04:18]} 14. Bxd4 {[%emt 0:00:03]} Bc6 {[%emt 0:01:04]} 15. e5 {[%emt 0:02:06]} Nh5 {[%emt 0:01:36]} 16. Qe3 {[%emt 0:02:19]} Bh6 {[%emt 0:01:59]} 17. Bb6 {[%emt 0:00:35]} Qb4 {[%emt 0:00:23]} 18. a3 {[%emt 0:00:03]} Bxf4 {[%emt 0:00:07]} 19. axb4 {[%emt 0:00:01]} Bxe3+ {[%emt 0:00:10]} 20. Bxe3 {[%emt 0:00:02]} d5 {[%emt 0:00:08]} 21. Nxd5 {[%emt 0:00:10]} Ng3 {[%emt 0:00:14]} 1-0

[Event "African Games Rapid Open 2019"]
[Site "Casablanca"]
[Date "2019.08.27"]
[Round "6.15"]
[White "Gohil, Mehul"]
[Black "Rita, Jeorciley"]
[Result "1-0"]
[ECO "D35"]
[WhiteElo "2076"]
[BlackElo "1920"]
[Annotator "NA"]
[PlyCount "125"]
[EventDate "2019.08.26"]
[EventType "team-tourn"]
[EventCountry "MAR"]
[SourceTitle "playchess.com"]
[Source "ChessBase"]
[SourceQuality "1"]
[TimeControl "900+10"]

1. d4 {[%emt 0:00:00]} e6 {[%emt 0:00:00]} 2. c4 {[%emt 0:00:00]} d5 {[%emt 0:00:00]} 3. Nc3 {[%emt 0:00:04]} Nf6 {[%emt 0:00:00]} 4. cxd5 {[%emt 0:00:06]} exd5 {[%emt 0:00:00]} 5. Bg5 {[%emt 0:00:04]} Be7 {[%emt 0:00:00]} 6. Qc2 {[%emt 0:00:04]} c6 {[%emt 0:00:04]} 7. e3 {[%emt 0:00:04]} Bg4 {[%emt 0:00:13]} 8. Bd3 {[%emt 0:00:24]} Nbd7 {[%emt 0:00:11]} 9. Nge2 {[%emt 0:00:22]} Bh5 {[%emt 0:00:04]} 10. O-O {[%emt 0:01:06]} Bg6 {[%emt 0:00:01]} 11. f3 {[%emt 0:00:20]} O-O {[%emt 0:02:58]} 12. Rad1 {[%emt 0:00:07]} Nh5 {[%emt 0:00:02]} 13. Bxe7 {[%emt 0:00:16]} Qxe7 {[%emt 0:00:03]} 14. e4 {[%emt 0:00:10]} Nhf6 {[%emt 0:01:49]} 15. e5 {[%emt 0:00:23]} Bxd3 {[%emt 0:00:09]} 16. Qxd3 {[%emt 0:00:04]} Ne8 {[%emt 0:00:05]} 17. f4 {[%emt 0:00:09]} f6 {[%emt 0:00:05]} 18. Kh1 {[%emt 0:01:19]} Nc7 {[%emt 0:00:21]} 19. Ng3 {[%emt 0:00:13]} fxe5 {[%emt 0:00:30]} 20. dxe5 {[%emt 0:00:31]} g6 {[%emt 0:00:49]} 21. Nce4 {[%emt 0:03:23]} Ne6 {[%emt 0:00:15]} 22. Ne2 {[%emt 0:04:41]} Ndc5 {[%emt 0:03:46]} 23. Nxc5 {[%emt 0:00:05]} Qxc5 {[%emt 0:00:14]} 24. g3 {[%emt 0:00:31]} Qb4 {[%emt 0:00:36]} 25. a3 {[%emt 0:01:32]} Qe7 {[%emt 0:02:00]} 26. h4 {[%emt 0:00:15]} Nc5 {[%emt 0:00:05]} 27. Qe3 {[%emt 0:00:19]} Ne4 {[%emt 0:00:21]} 28. Nc3 {[%emt 0:00:05]} Nxc3 {[%emt 0:00:29]} 29. Qxc3 {[%emt 0:00:01]} Qe6 {[%emt 0:00:09]} 30. Kg2 {[%emt 0:00:05]} h5 {[%emt 0:00:03]} 31. b4 {[%emt 0:00:10]} a6 {[%emt 0:00:08]} 32. Qd3 {[%emt 0:00:10]} Rf5 {[%emt 0:00:39]} 33. Rc1 {[%emt 0:00:26]} Kg7 {[%emt 0:01:07]} 34. Qd4 {[%emt 0:00:24]} Rf7 {[%emt 0:00:15]} 35. Rf2 {[%emt 0:00:11]} Kh7 {[%emt 0:00:12]} 36. Rcf1 {[%emt 0:00:06]} Rf5 {[%emt 0:00:15]} 37. Qb6 {[%emt 0:00:23]} Qe7 {[%emt 0:01:11]} 38. Rc1 {[%emt 0:00:34]} Rc8 {[%emt 0:00:44]} 39. Rd2 {[%emt 0:00:08]} Rff8 {[%emt 0:00:55]} 40. Qd4 {[%emt 0:00:20]} Qe6 {[%emt 0:00:10]} 41. Rdc2 {[%emt 0:00:11]} Rc7 {[%emt 0:00:08]} 42. a4 {[%emt 0:00:09]} Rfc8 {[%emt 0:00:01]} 43. b5 {[%emt 0:00:07]} axb5 {[%emt 0:00:08]} 44. axb5 {[%emt 0:00:02]} c5 {[%emt 0:00:02]} 45. Rxc5 {[%emt 0:00:03]} Qd7 {[%emt 0:00:19]} 46. Rxc7 {[%emt 0:00:06]} Rxc7 {[%emt 0:00:01]} 47. Rxc7 {[%emt 0:00:02]} Qxc7 {[%emt 0:00:01]} 48. Qxd5 {[%emt 0:00:04]} Qc2+ {[%emt 0:00:09]} 49. Kf3 {[%emt 0:00:32]} Qc3+ {[%emt 0:00:05]} 50. Kf2 {[%emt 0:00:07]} Qc2+ {[%emt 0:00:02]} 51. Ke3 {[%emt 0:00:08]} Qc1+ {[%emt 0:00:03]} 52. Kd4 {[%emt 0:00:28]} b6 {[%emt 0:00:24]} 53. Qb3 {[%emt 0:00:14]} Qd2+ {[%emt 0:00:11]} 54. Ke4 {[%emt 0:00:22]} Qg2+ {[%emt 0:00:17]} 55. Kd4 {[%emt 0:00:09]} Qf2+ {[%emt 0:00:10]} 56. Kd5 {[%emt 0:00:26]} Qc5+ {[%emt 0:00:03]} 57. Ke4 {[%emt 0:00:15]} Qf2 {[%emt 0:00:29]} 58. e6 {[%emt 0:00:18]} Qe2+ {[%emt 0:00:07]} 59. Kd5 {[%emt 0:00:08]} Qd2+ {[%emt 0:00:16]} 60. Kc6 {[%emt 0:00:05]} Qd8 {[%emt 0:00:19]} 61. Qd5 {[%emt 0:00:53]} Qc8+ {[%emt 0:00:35]} 62. Kxb6 {[%emt 0:00:11]} Qb8+ {[%emt 0:00:02]} 63. Qb7+ {[%emt 0:00:07]} 1-0

[Event "African Games Rapid Open 2019"]
[Site "Casablanca"]
[Date "2019.08.27"]
[Round "6.16"]
[White "Asante Debesai Zerabruk"]
[Black "Gole, Habtamu Ashenafi"]
[Result "0-1"]
[ECO "B90"]
[WhiteElo "1712"]
[BlackElo "2046"]
[Annotator "NA"]
[PlyCount "94"]
[EventDate "2019.08.26"]
[EventType "team-tourn"]
[EventCountry "MAR"]
[SourceTitle "playchess.com"]
[Source "ChessBase"]
[SourceQuality "1"]
[TimeControl "900+10"]

1. e4 {[%emt 0:00:00]} c5 {[%emt 0:00:00]} 2. Nf3 {[%emt 0:00:00]} d6 {[%emt 0:00:00]} 3. d4 {[%emt 0:00:00]} cxd4 {[%emt 0:00:00]} 4. Nxd4 {[%emt 0:00:00]} Nf6 {[%emt 0:00:00]} 5. Nc3 {[%emt 0:00:00]} a6 {[%emt 0:00:00]} 6. f3 {[%emt 0:00:10]} e6 {[%emt 0:00:03]} 7. Be3 {[%emt 0:00:06]} Nbd7 {[%emt 0:00:04]} 8. Qd2 {[%emt 0:00:23]} Qc7 {[%emt 0:00:02]} 9. Bd3 {[%emt 0:00:40]} b5 {[%emt 0:00:04]} 10. a3 {[%emt 0:00:08]} Bb7 {[%emt 0:00:01]} 11. O-O {[%emt 0:00:14]} Rc8 {[%emt 0:00:02]} 12. Rac1 {[%emt 0:00:43]} Be7 {[%emt 0:00:02]} 13. Nce2 {[%emt 0:00:45]} Ne5 {[%emt 0:00:06]} 14. Ng3 {[%emt 0:01:18]} Nc4 {[%emt 0:00:02]} 15. Bxc4 {[%emt 0:00:11]} Qxc4 {[%emt 0:00:03]} 16. Qd3 {[%emt 0:00:53]} Qc7 {[%emt 0:01:01]} 17. Rfe1 {[%emt 0:01:19]} O-O {[%emt 0:00:04]} 18. Nf1 {[%emt 0:00:27]} Nd7 {[%emt 0:00:07]} 19. Nb3 {[%emt 0:00:22]} Ne5 {[%emt 0:00:08]} 20. Qe2 {[%emt 0:00:16]} Nc4 {[%emt 0:00:08]} 21. Bd4 {[%emt 0:00:22]} e5 {[%emt 0:01:37]} 22. Bc3 {[%emt 0:00:11]} f5 {[%emt 0:00:03]} 23. Nbd2 {[%emt 0:00:42]} Nxa3 {[%emt 0:02:04]} 24. exf5 {[%emt 0:01:31]} Qb6+ {[%emt 0:00:56]} 25. Kh1 {[%emt 0:00:16]} Nc4 {[%emt 0:00:04]} 26. Nxc4 {[%emt 0:00:21]} Rxc4 {[%emt 0:00:18]} 27. Ne3 {[%emt 0:00:09]} Rcc8 {[%emt 0:00:48]} 28. Qd3 {[%emt 0:01:20]} Qc5 {[%emt 0:00:50]} 29. Red1 {[%emt 0:03:14]} Bg5 {[%emt 0:00:33]} 30. Bd2 {[%emt 0:00:16]} d5 {[%emt 0:01:31]} 31. Nxd5 {[%emt 0:01:13]} Bxd2 {[%emt 0:00:37]} 32. Rxd2 {[%emt 0:00:41]} Rcd8 {[%emt 0:01:46]} 33. Nf6+ {[%emt 0:01:08]} Kf7 {[%emt 0:00:54]} 34. Qb3+ {[%emt 0:00:16]} Kxf6 {[%emt 0:02:19]} 35. Qe6+ {[%emt 0:00:03]} Kg5 {[%emt 0:00:01]} 36. h4+ {[%emt 0:00:18]} Kxh4 {[%emt 0:02:08]} 37. f6 {[%emt 0:00:01]} Qc4 {[%emt 0:00:39]} 38. g3+ {[%emt 0:00:43]} Kxg3 {[%emt 0:00:38]} 39. Rg2+ {[%emt 0:00:06]} Kxf3 {[%emt 0:00:45]} 40. Qf5+ {[%emt 0:00:03]} Ke3 {[%emt 0:00:55]} 41. Qf2+ {[%emt 0:00:07]} Ke4 {[%emt 0:00:13]} 42. Re1+ {[%emt 0:00:13]} Kd5 {[%emt 0:00:06]} 43. Rd1+ {[%emt 0:00:27]} Ke6 {[%emt 0:00:07]} 44. Qb6+ {[%emt 0:00:01]} Qc6 {[%emt 0:00:09]} 45. Qxc6+ {[%emt 0:00:27]} Bxc6 {[%emt 0:00:03]} 46. Rxd8 {[%emt 0:00:03]} Rxd8 {[%emt 0:00:02]} 47. fxg7 {[%emt 0:00:02]} Rg8 {[%emt 0:00:02]} 0-1

[Event "African Games Rapid Open 2019"]
[Site "Casablanca"]
[Date "2019.08.27"]
[Round "6.17"]
[White "Eichab, Charles"]
[Black "Kouya, Tyeoulou Bernardin F"]
[Result "1-0"]
[ECO "A01"]
[WhiteElo "2016"]
[BlackElo "1770"]
[Annotator "NA"]
[PlyCount "45"]
[EventDate "2019.08.26"]
[EventType "team-tourn"]
[EventCountry "MAR"]
[SourceTitle "playchess.com"]
[Source "ChessBase"]
[SourceQuality "1"]
[TimeControl "900+10"]

1. b3 {[%emt 0:00:53]} d5 {[%emt 0:00:00]} 2. e3 {[%emt 0:00:02]} Nf6 {[%emt 0:00:00]} 3. Bb2 {[%emt 0:00:01]} e6 {[%emt 0:00:01]} 4. f4 {[%emt 0:00:07]} Be7 {[%emt 0:00:03]} 5. Nf3 {[%emt 0:00:01]} h6 {[%emt 0:00:03]} 6. Be2 {[%emt 0:00:03]} O-O {[%emt 0:00:03]} 7. O-O {[%emt 0:00:01]} c5 {[%emt 0:00:10]} 8. Ne5 {[%emt 0:00:04]} Nbd7 {[%emt 0:00:02]} 9. d3 {[%emt 0:00:11]} Qc7 {[%emt 0:00:16]} 10. Nd2 {[%emt 0:00:12]} b6 {[%emt 0:00:05]} 11. Qe1 {[%emt 0:01:03]} Kh7 {[%emt 0:00:13]} 12. Qg3 {[%emt 0:00:14]} Bb7 {[%emt 0:00:09]} 13. Ndf3 {[%emt 0:00:24]} Nh5 {[%emt 0:00:36]} 14. Qh3 {[%emt 0:00:25]} g6 {[%emt 0:00:47]} 15. g4 {[%emt 0:00:32]} Ng7 {[%emt 0:00:11]} 16. Nxd7 {[%emt 0:01:54]} Qxd7 {[%emt 0:00:03]} 17. Ng5+ {[%emt 0:00:07]} Bxg5 {[%emt 0:00:27]} 18. fxg5 {[%emt 0:00:02]} h5 {[%emt 0:00:07]} 19. gxh5 {[%emt 0:00:07]} Rh8 {[%emt 0:00:23]} 20. hxg6+ {[%emt 0:00:33]} Kg8 {[%emt 0:00:05]} 21. gxf7+ {[%emt 0:00:08]} Qxf7 {[%emt 0:00:01]} 22. Qxh8+ {[%emt 0:00:04]} Kxh8 {[%emt 0:00:03]} 23. Rxf7 {[%emt 0:00:01]} 1-0